bitfinex-derivatives/quotes_ETHF0:USTF0_20250704
["timestamp","ask_amount","ask_price","bid_price","bid_amount"]
[1751660854203,3.2093305,2494.6,2494.5,0.80162]
[1751660854607,0.80166,2494.5,2494.4,0.80165]
[1751660854808,0.80174,2494.2,2494.1,12.06875]
[1751660855102,0.80174,2494.2,2494.1,48.43075]
[1751660855409,0.80173,2494.3,2494.2,0.80172]
[1751660855606,2.22843,2494.3,2494.2,0.80172]
[1751660863514,0.80173,2494.3,2494.2,0.80172]
[1751660864012,0.8017,2494.3,2494.2,0.80172]
[1751660880133,1.83991411,2494.3,2494.2,0.80172]
[1751660886938,0.80174,2494.2,2494.1,12.06874]
[1751660887139,0.80174,2494.2,2494.1,48.42874]
[1751660887336,2.00438,2494.2,2493.8,61.71477805]
[1751660887535,2.53424975,2494.1,2494.0,0.8018]
[1751660888431,0.8018,2494.0,2493.9,37.16181]
[1751660889941,0.8018,2494.0,2493.9,36.36]
[1751660890138,0.8018,2494.0,2493.9,37.16183]
[1751660890637,0.8018,2494.0,2493.9,36.36]
[1751660891636,0.8018,2494.0,2493.9,37.16183]
[1751660893544,0.8018,2494.0,2493.9,0.80183]
[1751660894844,0.80183,2493.9,2493.8,37.16084]
[1751660895046,0.80187,2493.8,2493.7,1.52107]
[1751660895447,0.80187,2493.8,2493.7,37.88007]
[1751660896543,0.80187,2493.8,2493.7,1.52107]
[1751660896742,2.0049,2493.6,2493.1,60.90193805]
[1751660896943,0.80203,2493.3,2493.2,1.48024]
[1751660897547,0.80203,2493.3,2493.2,0.6782]
[1751660897742,0.7017,2493.5,2492.9,11.267]
[1751660897939,0.80221,2492.8,2492.6,0.80223]
[1751660898148,0.80217,2492.9,2492.7,0.80222]
[1751660898548,0.80214,2493.0,2492.8,0.80219]
[1751660900949,0.80215,2492.9,2492.8,0.80219]
[1751660901345,0.80214,2493.0,2492.8,0.80219]
[1751660901647,0.80214,2493.0,2492.8,0.80218]
[1751660902750,0.80215,2492.9,2492.8,0.80218]
[1751660903950,0.80214,2493.0,2492.8,0.80218]
[1751660904350,0.80214,2493.0,2492.9,0.80215]
[1751660904553,0.80215,2492.9,2492.8,0.80216]
[1751660905642,0.80214,2493.0,2492.9,0.80215]
[1751660907053,0.80217,2492.9,2492.8,0.80217]
[1751660913162,0.80222,2492.7,2492.6,2.15093]
[1751660913861,0.80222,2492.7,2492.6,0.80223]
[1751660914056,0.80225,2492.6,2492.5,1.48046]
[1751660914263,0.80224,2492.7,2492.6,0.80223]
[1751660915461,1.45201,2492.8,2492.7,0.80222]
[1751660916662,0.80225,2492.7,2492.6,0.80223]
[1751660919361,0.6498,2492.8,2492.7,0.80222]
[1751660919362,1.45202,2492.8,2492.7,0.80222]
[1751660921165,0.80225,2492.7,2492.6,0.80223]
[1751660923966,1.45202,2492.8,2492.7,0.80222]
[1751660924868,0.80225,2492.7,2492.6,0.80223]
[1751660925068,0.80228,2492.5,2492.4,1.45539]
[1751660925269,0.80228,2492.6,2492.5,0.80227]
[1751660927168,1.87472663,2492.6,2492.5,0.80227]
[1751660932075,0.8023,2492.5,2492.4,0.8023]
[1751660932273,1.4513,2492.5,2492.4,0.8023]
[1751660932473,0.649,2492.5,2492.4,0.8023]
[1751660932874,1.45128,2492.5,2492.4,0.8023]
[1751660933279,0.649,2492.5,2492.4,0.8023]
[1751660935377,1.45128,2492.5,2492.4,0.8023]
[1751660936178,0.649,2492.5,2492.4,0.8023]
[1751660937580,1.45128,2492.5,2492.4,0.8023]
[1751660939280,0.649,2492.5,2492.4,0.8023]
[1751660943484,1.45128,2492.5,2492.4,0.8023]
[1751660944085,0.649,2492.5,2492.4,0.8023]
[1751660944584,1.45128,2492.5,2492.4,0.8023]
[1751660945687,0.649,2492.5,2492.4,0.8023]
[1751660946185,1.45128,2492.5,2492.4,0.8023]
[1751660947480,1.45128,2492.5,2492.2,11.267]
[1751660947481,0.80234,2492.4,2492.3,0.80232]
[1751660948786,1.4513,2492.5,2492.4,0.80232]
[1751660948991,2.52335653,2492.5,2492.4,0.80232]
[1751660949491,1.72105653,2492.5,2492.4,0.80232]
[1751660949692,0.649,2492.5,2492.4,0.80232]
[1751660952290,1.73256161,2492.5,2492.4,0.80232]
[1751660952486,0.80216,2492.9,2492.8,0.80215]
[1751660952687,1.76528948,2493.0,2492.9,0.80215]
[1751660953390,2.56740948,2493.0,2492.9,0.80215]
[1751660954786,0.8022,2492.8,2492.7,0.80218]
[1751660955093,0.80217,2492.9,2492.8,0.80217]
[1751660955292,1.88539014,2492.9,2492.8,0.80217]
[1751660965197,1.8833005,2492.9,2492.8,0.80217]
[1751660967899,1.0811305,2492.9,2492.8,0.80217]
[1751660968399,1.48394,2493.0,2492.9,0.80215]
[1751660968698,2.56497106,2493.0,2492.9,0.80215]
[1751660984618,0.80217,2492.9,2492.8,0.80217]
[1751660984917,1.88320106,2492.9,2492.8,0.80217]
[1751660986919,0.80221,2492.8,2492.7,0.80219]
[1751660987116,1.88324106,2492.8,2492.7,0.80219]
[1751660988018,0.80221,2492.8,2492.7,0.80219]
[1751660989116,1.88802195,2492.8,2492.7,0.80219]
[1751660989518,0.80222,2492.7,2492.6,2.20293]
[1751660989719,0.8022,2492.8,2492.7,0.80219]
[1751660990216,1.88802171,2492.8,2492.7,0.80219]
[1751660990917,1.08582171,2492.8,2492.6,1.4007]
[1751660991121,0.80222,2492.7,2492.6,2.20293]
[1751660997429,0.80221,2492.8,2492.7,0.80219]
[1751660997725,1.88110893,2492.8,2492.7,0.80219]
[1751661010338,1.88108893,2492.8,2492.7,0.80219]
[1751661011743,1.07889893,2492.8,2492.7,0.80219]
[1751661012845,1.88108893,2492.8,2492.7,0.80219]
[1751661014545,1.07889893,2492.8,2492.7,0.80219]
[1751661016648,1.88108893,2492.8,2492.7,0.80219]
[1751661021049,1.07889893,2492.8,2492.7,0.80219]
[1751661021451,1.88108893,2492.8,2492.7,0.80219]
[1751661028867,1.88108893,2492.8,2492.7,0.80222]
[1751661029067,1.88110893,2492.8,2492.5,1.4346]
[1751661029268,0.6876,2492.7,2492.5,2.12]
[1751661029868,0.6876,2492.7,2492.6,0.80225]
[1751661034672,1.48982,2492.7,2492.6,0.80225]
[1751661035374,0.6876,2492.7,2492.6,0.80225]
[1751661035774,1.48982,2492.7,2492.6,0.80225]
[1751661036070,0.6876,2492.7,2492.6,0.80225]
[1751661064794,1.48982,2492.7,2492.6,0.80225]
[1751661065195,0.6876,2492.7,2492.6,0.80225]
[1751661067895,1.48982,2492.7,2492.6,0.80225]
[1751661068293,0.6876,2492.7,2492.6,0.80225]
[1751661071799,1.48982,2492.7,2492.6,0.80225]
[1751661078006,0.6876,2492.7,2492.6,0.80225]
[1751661080308,1.48982,2492.7,2492.6,0.80225]
[1751661080808,0.6876,2492.7,2492.6,0.80225]
[1751661081206,1.48982,2492.7,2492.6,0.80225]
[1751661082921,0.6876,2492.7,2492.6,0.80225]
[1751661091815,0.6859,2493.0,2492.6,0.80225]
[1751661092016,2.40671208,2493.4,2493.3,0.80203]
[1751661092219,2.40671208,2493.6,2493.5,0.80196]
[1751661092518,1.45898,2493.8,2493.6,0.80191]
[1751661092716,0.676,2493.7,2493.6,0.80191]
[1751661092916,3.8838,2493.7,2493.6,0.80191]
[1751661093215,4.6857,2493.7,2493.5,0.80194]
[1751661093516,3.8838,2493.7,2493.2,11.249]
[1751661093718,3.2078,2493.3,2493.2,12.70376]
[1751661096217,3.2078,2493.3,2493.2,1.45476]
[1751661096421,3.2078,2493.3,2493.2,12.70276]
[1751661097124,3.2078,2493.3,2493.2,1.45476]
[1751661097323,3.2078,2493.3,2493.2,12.70176]
[1751661097524,3.2078,2493.3,2493.2,1.45476]
[1751661097823,3.2078,2493.3,2493.2,12.70176]
[1751661098224,3.2078,2493.3,2493.2,1.45476]
[1751661098420,3.2078,2493.3,2493.2,12.70176]
[1751661099622,3.2078,2493.3,2493.2,48.99976]
[1751661100923,3.2078,2493.3,2493.2,1.45476]
[1751661101123,3.2078,2493.3,2493.2,48.99976]
[1751661101825,0.80196,2493.5,2493.4,0.80199]
[1751661102226,4.00976,2493.5,2493.4,0.80199]
[1751661104023,3.2078,2493.5,2492.3,12.80060871]
[1751661104223,4.74989,2493.4,2492.9,0.80214]
[1751661104429,3.2078,2493.0,2492.9,0.80214]
[1751661105424,3.2078,2493.0,2492.8,0.80216]
[1751661105630,1.45146,2492.9,2492.8,37.09616]
[1751661105929,0.6493,2492.9,2492.8,37.09616]
[1751661107731,1.45145,2492.9,2492.8,0.80216]
[1751661108133,2.13755,2492.9,2492.8,0.80216]
[1751661108532,1.3354,2492.9,2492.8,0.80216]
[1751661108933,2.13755,2492.9,2492.8,0.80216]
[1751661109329,1.3354,2492.9,2492.8,0.80216]
[1751661112236,4.5432,2492.9,2492.8,0.80216]
[1751661113035,4.5432,2492.9,2492.8,37.09916]
[1751661119142,3.8571,2492.9,2492.8,37.09916]
[1751661120642,0.6493,2492.9,2492.8,37.09916]
[1751661120942,3.8571,2492.9,2492.8,37.09916]
[1751661121349,0.6493,2492.9,2492.8,37.09916]
[1751661121545,3.8571,2492.9,2492.8,37.09916]
[1751661125960,3.2078,2492.9,2492.8,37.09916]
[1751661126447,3.2078,2492.9,2492.8,12.04816]
[1751661126643,3.2078,2492.9,2492.8,48.99546]
[1751661127349,3.2078,2492.9,2492.8,1.45346]
[1751661127548,3.2078,2492.9,2492.8,48.99246]
[1751661129246,1.3623,2493.3,2493.2,0.80206]
[1751661129452,4.5701,2493.3,2493.2,0.80206]
[1751661129750,3.2078,2493.3,2493.2,0.80206]
[1751661130047,3.2078,2493.3,2493.2,2.84616]
[1751661133649,3.2078,2493.3,2493.2,7.84616]
[1751661134451,46.41451208,2494.5,2493.2,10.2519]
[1751661134648,1.71954753,2494.4,2493.7,2.00475]
[1751661134848,1.05684753,2494.3,2493.8,39.119]
[1751661135048,1.05684753,2494.3,2493.9,1.383]
[1751661135252,1.4231,2494.7,2493.9,1.383]
[1751661135253,4.01118681,2495.5,2495.4,0.80135]
[1751661135556,0.39573856,2495.7,2495.4,51.2188]
[1751661135857,0.39573856,2495.7,2495.1,3.2078]
[1751661136059,3.2078,2495.6,2495.3,0.80138]
[1751661136257,5.2182,2495.6,2495.3,0.80138]
[1751661136456,5.2182,2495.6,2495.4,0.80133]
[1751661136661,5.2182,2495.6,2495.3,0.80137]
[1751661136864,5.2182,2495.6,2495.1,5.58170648]
[1751661137063,5.2182,2495.6,2495.3,0.80138]
[1751661137264,3.8561,2495.6,2495.1,51.2218]
[1751661137564,0.6627,2495.8,2495.7,0.80125]
[1751661138662,0.6627,2495.8,2495.6,0.80127]
[1751661139061,2.0311,2495.8,2495.6,0.80127]
[1751661139462,7.0311,2495.8,2495.4,3.2078]
[1751661139662,0.80127,2495.7,2495.4,4.00914]
[1751661139861,2.0355,2495.6,2495.5,0.80132]
[1751661140566,2.0355,2495.6,2495.4,3.2078]
[1751661140567,2.0355,2495.6,2495.4,4.00913]
[1751661140767,2.0355,2495.6,2495.5,0.80132]
[1751661140967,2.0355,2495.6,2495.4,4.00914]
[1751661141170,2.0355,2495.6,2495.5,0.80132]
[1751661143358,2.0355,2495.6,2495.5,1.32603724]
[1751661145971,2.83679,2495.6,2495.5,1.32603724]
[1751661146273,2.83679,2495.6,2495.5,0.52471724]
[1751661146570,2.0355,2495.6,2495.5,1.32603724]
[1751661147063,2.0355,2495.6,2495.5,1.33196118]
[1751661150764,2.83679,2495.6,2495.5,1.33196118]
[1751661150970,2.83679,2495.6,2495.5,0.53064118]
[1751661151171,2.83679,2495.6,2495.5,1.33196118]
[1751661151473,2.83679,2495.6,2495.5,0.53064118]
[1751661152264,0.80132,2495.5,2495.4,0.80133]
[1751661152466,2.21154,2495.5,2495.4,1.32765596]
[1751661153370,2.21154,2495.5,2495.4,0.52630596]
[1751661155668,5.41934,2495.5,2495.4,0.52630596]
[1751661157470,0.80135,2495.4,2495.3,0.80137]
[1751661157673,2.15325,2495.4,2495.3,0.80137]
[1751661158473,0.80138,2495.3,2495.2,0.80141]
[1751661158674,1.51498,2495.3,2495.2,0.80141]
[1751661160378,0.80145,2495.2,2495.1,0.80144]
[1751661166983,0.80148,2495.0,2494.9,4.47229648]
[1751661167289,0.80148,2495.0,2494.9,2.09839]
[1751661168390,0.80147,2495.1,2495.0,0.80146]
[1751661172987,0.80147,2495.1,2495.0,2.11516]
[1751661179593,0.80147,2495.1,2495.0,0.80146]
[1751661179794,0.80148,2495.0,2494.9,3.17538648]
[1751661180900,0.80148,2495.0,2494.9,0.80148]
[1751661181297,0.80148,2495.0,2494.9,3.17538648]
[1751661181489,0.80148,2495.0,2494.9,0.80148]
[1751661181695,0.80151,2494.9,2494.8,2.37390648]
[1751661181894,0.80151,2494.9,2494.8,3.17544648]
[1751661182095,1.80079294,2494.9,2494.8,0.80154]
[1751661183297,0.80151,2494.9,2494.8,0.80154]
[1751661183894,0.80154,2494.8,2494.7,2.92955]
[1751661190103,0.80154,2494.8,2494.7,1.51465]
[1751661191109,0.80154,2494.9,2494.8,0.80153]
[1751661193308,0.80154,2494.8,2494.7,1.51465]
[1751661201609,0.80154,2494.8,2494.7,0.80155]
[1751661204222,3.8835,2495.1,2494.5,15.9151]
[1751661204424,0.80157,2494.8,2494.7,0.80156]
[1751661207520,1.48543,2494.9,2494.8,0.80154]
[1751661207721,2.50173688,2494.9,2494.8,0.80154]
[1751661208422,1.70020688,2494.9,2494.8,0.80154]
[1751661208822,2.50171688,2494.9,2494.8,0.80154]
[1751661217535,1.70020688,2494.9,2494.8,0.80154]
[1751661219035,1.01630688,2494.9,2494.8,0.80154]
[1751661219338,3.17853068,2495.7,2494.9,2.00379]
[1751661219633,1.00964175,2495.6,2495.5,0.80132]
[1751661220528,3.8563,2495.8,2495.7,0.80125]
[1751661220723,5.66583356,2495.8,2495.6,0.80127]
[1751661220933,1.00828356,2495.7,2495.6,0.80127]
[1751661222335,3.8563,2495.8,2495.7,0.80125]
[1751661222633,5.66377258,2495.8,2495.7,0.80125]
[1751661222836,4.86255258,2495.8,2495.7,0.80125]
[1751661223136,3.8563,2495.8,2495.7,0.80125]
[1751661224331,4.65753,2495.8,2495.6,0.80127]
[1751661224530,0.80128,2495.7,2495.5,0.80131]
[1751661224726,0.80128,2495.7,2495.6,0.80129]
[1751661224929,4.65754,2495.8,2495.6,0.80129]
[1751661225436,0.6485,2495.8,2495.7,0.80125]
[1751661235643,0.6485,2495.8,2495.7,1.35193816]
[1751661236740,1.44972,2495.8,2495.7,0.55068816]
[1751661236934,2.88502,2495.8,2495.7,0.55068816]
[1751661238145,2.88502,2495.8,2495.7,1.35193816]
[1751661238443,2.88502,2495.8,2495.7,0.55068816]
[1751661240248,2.88502,2495.8,2495.7,1.35193816]
[1751661242246,2.88502,2495.8,2495.7,0.80125]
[1751661243249,0.80129,2495.7,2495.6,0.80127]
[1751661244150,0.80126,2495.7,2495.6,0.80125]
[1751661244350,2.88504,2495.8,2495.7,0.80125]
[1751661247946,2.0838,2495.8,2495.7,0.80125]
[1751661248152,1.44972,2495.8,2495.7,0.80125]
[1751661249244,0.6485,2495.8,2495.7,0.80125]
[1751661249946,2.4841276,2495.8,2495.7,0.80125]
[1751661250654,1.6829076,2495.8,2495.7,0.80125]
[1751661253247,0.6485,2495.8,2495.7,0.80125]
[1751661253447,1.68310285,2495.8,2495.7,0.80125]
[1751661258154,3.8703,2496.1,2496.0,0.80116]
[1751661258361,5.55539756,2496.1,2496.0,0.80116]
[1751661261057,6.35652756,2496.1,2496.0,0.80116]
[1751661261257,3.14872756,2496.1,2496.0,0.80116]
[1751661261464,2.34759756,2496.1,2496.0,0.80116]
[1751661261657,1.68509756,2496.1,2496.0,0.80116]
[1751661263665,2.48622756,2496.1,2496.0,0.80116]
[1751661263865,2.48622756,2496.1,2495.9,0.80117]
[1751661264059,1.45173,2496.1,2495.9,0.80119]
[1751661265264,0.80116,2496.0,2495.9,0.80117]
[1751661265664,1.45175,2496.1,2495.8,1.4194]
[1751661265967,1.05544555,2496.0,2495.9,0.80116]
[1751661266159,0.80127,2495.7,2495.4,3.2078]
[1751661266361,0.6575,2495.6,2495.5,0.80129]
[1751661267465,1.45879,2495.6,2495.5,0.80129]
[1751661267765,0.6575,2495.6,2495.5,0.80129]
[1751661269671,1.45879,2495.6,2495.5,0.80129]
[1751661269866,0.6575,2495.6,2495.5,0.80129]
[1751661270767,2.66073,2495.6,2495.2,3.18919926]
[1751661271069,4.26332245,2495.5,2495.0,4.00928]
[1751661271262,0.80145,2495.1,2495.0,3.2078]
[1751661271668,0.80145,2495.1,2495.0,4.00928]
[1751661271966,1.85730473,2495.1,2495.0,4.00928]
[1751661272174,1.05585473,2495.1,2495.0,4.00928]
[1751661272467,0.80144,2495.2,2495.1,0.80145]
[1751661272668,0.80145,2495.1,2495.0,4.00926]
[1751661272869,1.51935,2495.1,2495.0,3.2078]
[1751661273069,2.57426166,2495.1,2495.0,3.2078]
[1751661273271,1.51935,2495.1,2495.0,3.2078]
[1751661273569,1.51935,2495.1,2495.0,0.80148]
[1751661274072,0.80148,2495.0,2494.9,0.80149]
[1751661274275,0.7179,2495.1,2494.8,0.7075]
[1751661274474,0.7179,2495.1,2495.0,0.80148]
[1751661274869,1.51935,2495.1,2495.0,0.80148]
[1751661275369,0.7179,2495.1,2495.0,0.80148]
[1751661275971,1.51935,2495.1,2495.0,0.80148]
[1751661276275,0.7179,2495.1,2495.0,0.80148]
[1751661276979,2.70636078,2495.1,2495.0,0.80148]
[1751661277180,1.51935,2495.1,2495.0,0.80148]
[1751661278665,0.7179,2495.1,2494.3,3.2078]
[1751661278874,0.80159,2494.7,2494.6,0.8016]
[1751661279975,0.80163,2494.6,2494.5,0.80164]
[1751661280175,1.51713,2494.6,2494.5,0.80164]
[1751661282877,0.7155,2494.6,2494.5,0.80164]
[1751661287985,37.24448,2495.1,2494.9,0.80148]
[1751661288289,37.93568,2495.1,2494.6,7.70313]
[1751661288489,78.73568,2495.1,2495.0,0.80148]
[1751661288792,0.80149,2495.0,2494.9,0.80149]
[1751661288983,41.4912,2495.1,2494.7,1.303]
[1751661289190,42.29267,2495.1,2495.0,0.80148]
[1751661289488,43.49337247,2495.1,2495.0,0.80148]
[1751661289688,42.69190247,2495.1,2495.0,0.80148]
[1751661289891,0.6912,2495.1,2495.0,0.80148]
[1751661293883,0.6912,2495.1,2495.0,2.23408]
[1751661297691,4.66211,2495.6,2495.5,0.80132]
[1751661297891,44.30836523,2495.6,2495.5,0.80132]
[1751661298095,85.10836523,2495.6,2495.5,0.80132]
[1751661299193,0.80134,2495.5,2495.4,0.80133]
[1751661299394,1.18395523,2495.5,2495.4,0.80133]
[1751661299992,1.18395523,2495.5,2495.4,15.30213]
[1751661300191,3.8807,2495.9,2495.5,2.00322]
[1751661300391,3.8807,2495.9,2495.8,0.80122]
[1751661300689,5.05807496,2495.9,2495.8,0.80122]
[1751661302690,5.85926496,2495.9,2495.8,0.80122]
[1751661303297,5.05807496,2495.9,2495.8,0.80122]
[1751661304696,5.85926496,2495.9,2495.8,0.80122]
[1751661304887,5.05807496,2495.9,2495.8,0.80122]
[1751661307294,5.01663648,2495.9,2495.8,0.80122]
[1751661307494,5.81782648,2495.9,2495.8,0.80122]
[1751661309500,5.01663648,2495.9,2495.8,0.80122]
[1751661309701,5.81782648,2495.9,2495.8,0.80122]
[1751661313001,5.81727141,2495.9,2495.8,0.80122]
[1751661315607,4.68189,2495.9,2495.8,0.80122]
[1751661316410,0.80133,2495.5,2495.4,0.80134]
[1751661316805,0.80131,2495.6,2495.5,0.80131]
[1751661320414,1.93010962,2495.6,2495.5,0.80131]
[1751661321010,0.80131,2495.6,2495.5,0.80131]
[1751661321311,1.9301747,2495.6,2495.5,0.80131]
[1751661324014,1.1288647,2495.6,2495.2,11.291]
[1751661324214,2.65099458,2495.5,2495.4,0.80135]
[1751661325811,2.37325068,2496.1,2495.5,3.2078]
[1751661326012,5.49787533,2497.6,2496.0,3.2078]
[1751661326216,1.4115,2497.6,2496.6,3.2078]
[1751661326412,42.2115,2497.6,2496.7,13.24326228]
[1751661326711,3.2078,2497.4,2497.2,0.80076]
[1751661326916,3.2078,2497.4,2497.3,2.28e-06]
[1751661326917,4.00851,2497.4,2497.3,2.28e-06]
[1751661327112,0.80082,2497.1,2496.4,11.292]
[1751661327310,0.6979,2497.0,2496.8,0.80088]
[1751661327606,2.21234,2497.0,2496.8,0.80088]
[1751661328127,0.80092,2496.8,2496.5,0.80097]
[1751661328416,0.80093,2496.8,2496.3,5.42554]
[1751661328616,4.6193,2497.0,2496.4,11.292]
[1751661329011,0.801,2496.5,2496.4,11.292]
[1751661329519,0.801,2496.5,2496.3,1.4167]
[1751661329520,0.80099,2496.6,2496.3,13.50774]
[1751661329720,0.6999,2496.5,2496.4,0.80103]
[1751661332521,0.6999,2496.5,2496.4,2.19383]
[1751661333614,0.80091,2496.8,2496.6,0.80094]
[1751661333813,0.80089,2496.9,2496.7,0.80092]
[1751661334219,0.80089,2496.9,2496.4,1.3928]
[1751661334418,0.6979,2497.0,2496.4,1.3928]
[1751661334615,0.80095,2496.7,2496.5,0.80098]
[1751661334820,0.80095,2496.7,2496.4,12.8968]
[1751661335127,0.6647,2496.6,2496.5,0.80099]
[1751661338821,1.46567,2496.6,2496.5,0.80099]
[1751661339021,0.6647,2496.6,2496.5,0.80099]
[1751661340927,1.46567,2496.6,2496.5,0.80099]
[1751661341333,0.6647,2496.6,2496.5,0.80099]
[1751661341524,5.2068,2497.0,2496.5,2.0025]
[1751661341525,0.6979,2497.0,2496.5,2.0025]
[1751661341833,5.20968,2497.3,2496.6,1.3662]
[1751661342124,0.80085,2497.0,2496.9,0.80086]
[1751661344229,0.80089,2496.9,2496.8,0.80089]
[1751661344631,0.80093,2496.7,2496.6,2.16715]
[1751661344929,0.80089,2496.9,2496.8,0.80089]
[1751661346030,0.80093,2496.8,2496.7,0.80092]
[1751661346925,3.2078,2497.0,2496.8,0.80089]
[1751661346926,0.80089,2496.9,2496.8,0.80089]
[1751661347531,0.80092,2496.8,2496.7,0.80091]
[1751661347732,0.80096,2496.7,2496.6,0.80095]
[1751661349431,0.80092,2496.8,2496.7,0.80091]
[1751661350332,0.80095,2496.7,2496.6,0.80094]
[1751661350528,1.51675,2496.7,2496.6,0.80094]
[1751661353028,0.80104,2496.4,2496.3,0.80103]
[1751661353231,0.80104,2496.4,2496.3,12.30303]
[1751661353635,0.80102,2496.5,2496.4,0.80101]
[1751661357127,0.80103,2496.4,2496.3,3.1614211]
[1751661357325,0.80103,2496.4,2496.3,14.6634211]
[1751661359137,0.80103,2496.4,2496.3,12.30304]
[1751661360136,0.80103,2496.4,2496.3,14.6634211]
[1751661361231,0.80103,2496.4,2496.3,12.30304]
[1751661362036,0.80102,2496.5,2496.4,0.801]
[1751661362535,2.1093,2496.7,2496.3,11.502]
[1751661362736,1.75837466,2496.6,2496.5,0.80098]
[1751661365242,0.80099,2496.6,2496.5,0.80098]
[1751661365939,0.80103,2496.4,2496.3,12.30305]
[1751661367642,0.80103,2496.4,2496.3,11.502]
[1751661368941,0.80103,2496.4,2496.3,12.30306]
[1751661369142,0.80103,2496.4,2496.3,0.80106]
[1751661369343,0.80108,2496.3,2496.2,0.80107]
[1751661370043,0.80111,2496.2,2496.1,0.8011]
[1751661370745,0.80113,2496.1,2496.0,2.3603811]
[1751661370946,0.80116,2496.0,2495.9,5.5681811]
[1751661371246,1.50766,2496.0,2495.9,5.5681811]
[1751661371538,0.80119,2495.9,2495.8,2.1249]
[1751661371740,1.50767,2496.0,2495.9,0.80119]
[1751661371942,0.7065,2496.0,2495.9,0.80119]
[1751661372740,1.50766,2496.0,2495.9,0.80119]
[1751661372940,0.7065,2496.0,2495.9,0.80119]
[1751661373145,1.50766,2496.0,2495.9,0.80119]
[1751661373344,0.7065,2496.0,2495.9,0.80119]
[1751661373937,1.50766,2496.0,2495.9,0.80119]
[1751661376240,0.80119,2495.9,2495.8,0.80121]
[1751661376546,0.7065,2496.0,2495.6,72.3508]
[1751661376749,1.50767,2496.0,2495.9,0.80119]
[1751661380349,0.7065,2496.0,2495.6,59.0718]
[1751661380555,0.80121,2495.9,2495.8,0.80119]
[1751661381655,0.80124,2495.8,2495.7,0.80123]
[1751661381855,0.80125,2495.7,2495.6,0.80126]
[1751661382652,0.80132,2495.5,2495.4,3.7105811]
[1751661382851,2.00298,2495.9,2495.4,1.3502]
[1751661383049,3.37452,2495.9,2495.3,5.5681811]
[1751661383259,0.80134,2495.5,2495.4,0.80134]
[1751661384358,0.80134,2495.5,2495.3,3.2078]
[1751661384359,0.80135,2495.4,2495.3,4.00916]
[1751661384851,0.80135,2495.4,2495.3,0.80136]
[1751661385248,0.80139,2495.3,2495.2,0.8014]
[1751661385454,0.80134,2495.5,2495.4,0.80135]
[1751661385658,2.6858,2495.6,2495.1,11.434]
[1751661385856,0.80138,2495.4,2495.3,0.80137]
[1751661386353,0.80138,2495.4,2495.3,1.35171594]
[1751661386856,1.3143,2495.6,2495.5,0.80132]
[1751661387060,3.2078,2495.7,2495.6,0.80129]
[1751661387256,3.2078,2495.7,2495.6,2.74863594]
[1751661389063,4.00905,2495.7,2495.6,1.35163594]
[1751661389463,4.00905,2495.7,2495.6,0.55034594]
[1751661391360,4.00905,2495.7,2495.6,1.35163594]
[1751661392368,4.00905,2495.7,2495.6,0.55034594]
[1751661392768,4.00905,2495.7,2495.6,1.35163594]
[1751661394469,4.00905,2495.7,2495.6,0.55034594]
[1751661395273,4.00905,2495.7,2495.6,1.35163594]
[1751661395573,4.00905,2495.7,2495.6,0.55034594]
[1751661397674,4.99443596,2495.7,2495.6,0.55034594]
[1751661399977,0.80142,2495.2,2495.1,1.357]
[1751661400467,0.80142,2495.2,2495.1,2.15845]
[1751661400972,0.80142,2495.2,2495.1,1.357]
[1751661401176,0.80142,2495.2,2495.0,3.2078]
[1751661401177,0.80145,2495.1,2495.0,3.2078]
[1751661401377,1.49635,2495.1,2495.0,3.2078]
[1751661401967,0.8015,2495.0,2494.8,69.089]
[1751661402176,0.8015,2495.0,2494.9,0.80151]
[1751661402377,0.80151,2494.9,2494.8,0.80152]
[1751661402671,0.6949,2495.1,2494.9,0.8015]
[1751661402672,0.80149,2495.0,2494.9,0.8015]
[1751661402878,0.80151,2494.9,2494.8,0.80152]
[1751661403079,0.8015,2495.0,2494.9,0.80151]
[1751661404777,0.80153,2494.9,2494.8,0.80153]
[1751661405572,0.80153,2494.9,2494.7,1.4175]
[1751661405777,0.6554,2495.0,2494.7,0.80158]
[1751661405977,0.80154,2494.8,2494.7,0.80158]
[1751661406577,0.80153,2494.9,2494.8,0.80154]
[1751661406976,0.80155,2494.8,2494.7,0.80156]
[1751661407971,0.80153,2494.9,2494.8,0.80153]
[1751661408376,0.80155,2494.8,2494.7,0.80155]
[1751661411377,0.80153,2494.9,2494.8,0.80153]
[1751661411880,0.80156,2494.8,2494.7,0.80155]
[1751661412282,0.80153,2494.9,2494.8,0.80153]
[1751661424885,41.4554,2495.0,2494.6,1.3465]
[1751661425087,1.51317,2494.8,2494.7,0.80157]
[1751661425586,1.51317,2494.8,2494.6,1.3465]
[1751661425587,0.80158,2494.7,2494.6,0.80158]
[1751661427690,0.80167,2494.4,2494.3,3.6559811]
[1751661427993,0.80166,2494.5,2494.4,0.80166]
[1751661428493,0.80163,2494.6,2494.5,0.80163]
[1751661428688,1.79648559,2494.7,2494.3,1.2956]
[1751661428991,0.80161,2494.6,2494.5,0.80161]
[1751661430884,0.80158,2494.7,2494.6,0.80159]
[1751661431092,1.79687161,2494.7,2494.6,0.80159]
[1751661432690,0.80162,2494.6,2494.5,0.80162]
[1751661433992,0.80162,2494.6,2494.5,0.80164]
[1751661434395,0.8016,2494.7,2494.6,0.80161]
[1751661434597,1.79768747,2494.7,2494.6,0.80161]
[1751661435291,0.80163,2494.6,2494.4,2.15874]
[1751661435495,0.80163,2494.6,2494.5,0.80164]
[1751661435894,1.79776363,2494.6,2494.5,0.80164]
[1751661436797,0.8016,2494.7,2494.6,0.80161]